[Event "World Senior chT-50 2019"]
[Site "Rhodes"]
[Date "2019.04.18"]
[Round "3.2"]
[White "Hjartarson, Johann"]
[Black "Garcia Palermo, Carlos"]
[Result "1/2-1/2"]
[ECO "E05"]
[WhiteElo "2520"]
[BlackElo "2407"]
[PlyCount "120"]
[EventDate "2019.04.16"]
[EventType "team-tourn"]
[EventCountry "GRE"]
[TimeControl "40/5400+30:1800+30"]

1. d4 {[%emt 3:51:00]} Nf6 {[%emt 0:00:45]} 2. c4 {[%emt 0:00:07]} e6 {[%emt 0:00:17]} 3. g3 {[%emt 0:00:15]} d5 {[%emt 0:01:58]} 4. Nf3 {[%emt 0:00:19]} Be7 {[%emt 0:01:58]} 5. Bg2 {[%emt 0:00:08]} O-O {[%emt 0:00:05]} 6. O-O {[%emt 0:00:13]} dxc4 {[%emt 0:00:07]} 7. Qc2 {[%emt 0:00:13]} b6 {[%emt 0:01:09]} 8. e4 {[%emt 0:06:42]} Bb7 {[%emt 0:05:42]} 9. Nc3 {[%emt 0:00:12]} Nc6 {[%emt 0:06:42]} 10. Rd1 {[%emt 0:06:38]} Nb4 {[%emt 0:02:54]} 11. Qe2 {[%emt 0:00:11]} Nd3 {[%emt 0:00:17]} 12. Bg5 {[%emt 0:01:24]} Ng4 {[%emt 0:12:01]} 13. Bxe7 {[%emt 0:10:30]} Qxe7 {[%emt 0:00:05]} 14. Nd2 {[%emt 0:05:28]} Ngxf2 {[%emt 0:05:49]} 15. Rf1 {[%emt 0:00:17]} Qd8 {[%emt 0:02:16]} 16. d5 {[%emt 0:01:32]} f5 {[%emt 0:10:07]} 17. exf5 {[%emt 0:09:34]} exd5 {[%emt 0:09:56]} 18. Rxf2 {[%emt 0:00:32]} Nxf2 {[%emt 0:00:38]} 19. Qxf2 {[%emt 0:00:20]} c6 {[%emt 0:03:05]} 20. g4 {[%emt 0:04:47]} h5 {[%emt 0:07:34]} 21. h3 {[%emt 0:00:50]} hxg4 {[%emt 0:00:14]} 22. hxg4 {[%emt 0:00:05]} Qg5 {[%emt 0:00:08]} 23. Qd4 {[%emt 0:11:06]} Rae8 {[%emt 0:14:57]} 24. Nf3 {[%emt 0:01:13]} Qe3+ {[%emt 0:00:46]} 25. Qxe3 {[%emt 0:00:07]} Rxe3 {[%emt 0:00:02]} 26. Kf2 {[%emt 0:00:52]} Rfe8 {[%emt 0:01:17]} 27. Rd1 {[%emt 0:03:02]} b5 {[%emt 0:00:40]} 28. Nd4 {[%emt 0:01:39]} Kf7 {[%emt 0:07:20]} 29. Ne6 {[%emt 0:03:02]} R3xe6 {[%emt 0:00:13]} 30. fxe6+ {[%emt 0:00:06]} Rxe6 {[%emt 0:00:06]} 31. b4 {[%emt 0:01:34]} Kf6 {[%emt 0:02:01]} 32. Ne2 {[%emt 0:01:54]} Ke5 {[%emt 0:02:19]} 33. Bf3 {[%emt 0:04:15]} Rf6 {[%emt 0:02:04]} 34. Ke3 {[%emt 0:00:51]} Kd6 {[%emt 0:00:38]} 35. Nd4 {[%emt 0:00:26]} Bc8 {[%emt 0:01:00]} 36. g5 {[%emt 0:04:06]} Rf8 {[%emt 0:00:26]} 37. Nxb5+ {[%emt 0:02:16]} cxb5 {[%emt 0:00:10]} 38. Rxd5+ {[%emt 0:00:04]} Kc7 {[%emt 0:01:01]} 39. Rxb5 {[%emt 0:00:22]} Be6 {[%emt 0:00:32]} 40. Rb7+ {[%emt 0:00:23]} Kd6 {[%emt 0:00:01]} 41. Rxa7 {[%emt 0:00:55]} c3 {[%emt 0:03:39]} 42. Be4 {[%emt 0:01:17]} Rf1 {[%emt 0:06:09]} 43. Kd4 {[%emt 0:06:11]} Rf4 {[%emt 0:01:14]} 44. Ra6+ {[%emt 0:05:22]} Kd7 {[%emt 0:00:20]} 45. Ra5 {[%emt 0:04:40]} c2 {[%emt 0:08:12]} 46. Rc5 {[%emt 0:00:11]} Bf5 {[%emt 0:02:59]} 47. Ke5 {[%emt 0:00:18]} Rxe4+ {[%emt 0:00:04]} 48. Kxf5 {[%emt 0:00:06]} Rxb4 {[%emt 0:00:04]} 49. Rxc2 {[%emt 0:00:29]} Rb6 {[%emt 0:00:07]} 50. a4 {[%emt 0:01:00]} g6+ {[%emt 0:00:14]} 51. Ke5 {[%emt 0:00:12]} Re6+ {[%emt 0:00:12]} 52. Kf4 {[%emt 0:06:06]} Ra6 {[%emt 0:00:24]} 53. Rc4 {[%emt 0:00:24]} Ra5 {[%emt 0:00:11]} 54. Rd4+ {[%emt 0:04:46]} Ke6 {[%emt 0:01:08]} 55. Rb4 {[%emt 0:00:25]} Rf5+ {[%emt 0:00:22]} 56. Kg4 {[%emt 0:00:13]} Ra5 {[%emt 0:00:10]} 57. Rb6+ {[%emt 0:00:36]} Ke7 {[%emt 0:01:00]} 58. Rxg6 {[%emt 0:00:44]} Rxa4+ {[%emt 0:00:03]} 59. Kh5 {[%emt 0:00:08]} Kf7 {[%emt 0:00:05]} 60. Rb6 {[%emt 0:01:45]} Ra8 {[%emt 0:00:13]} 1/2-1/2

[Event "World Senior chT-50 2019"]
[Site "Rhodes"]
[Date "2019.04.18"]
[Round "3.3"]
[White "Mariotti, Sergio"]
[Black "Petursson, Margeir"]
[Result "1/2-1/2"]
[ECO "D30"]
[WhiteElo "2280"]
[BlackElo "2492"]
[PlyCount "61"]
[EventDate "2019.04.16"]
[EventType "team-tourn"]
[EventCountry "GRE"]
[TimeControl "40/5400+30:1800+30"]

1. d4 {[%emt 0:00:00]} Nf6 {[%emt 0:00:00]} 2. Nf3 {[%emt 0:00:00]} e6 {[%emt 0:00:00]} 3. g3 {[%emt 0:00:00]} c5 {[%emt 0:00:59]} 4. Bg2 {[%emt 0:00:00]} Nc6 {[%emt 0:01:33]} 5. O-O {[%emt 0:00:06]} cxd4 {[%emt 0:02:59]} 6. Nxd4 {[%emt 0:00:16]} Bc5 {[%emt 0:00:19]} 7. Nb3 {[%emt 0:00:23]} Bb6 {[%emt 0:07:01]} 8. c4 {[%emt 0:00:51]} d5 {[%emt 0:03:16]} 9. cxd5 {[%emt 0:00:13]} exd5 {[%emt 0:06:09]} 10. Bg5 {[%emt 0:11:15]} d4 {[%emt 0:03:07]} 11. N1d2 {[%emt 0:00:10]} h6 {[%emt 0:01:05]} 12. Bxf6 {[%emt 0:00:02]} Qxf6 {[%emt 0:00:11]} 13. Nc4 {[%emt 0:00:17]} O-O {[%emt 0:18:45]} 14. Nxb6 {[%emt 0:00:10]} axb6 {[%emt 0:00:07]} 15. Bxc6 {[%emt 0:17:22]} bxc6 {[%emt 0:03:56]} 16. Qxd4 {[%emt 0:00:02]} Qe7 {[%emt 0:00:47]} 17. Qxb6 {[%emt 0:04:08]} Qxe2 {[%emt 0:00:10]} 18. Nd4 {[%emt 0:00:07]} Qe5 {[%emt 0:00:56]} 19. Rfe1 {[%emt 0:01:16]} Qf6 {[%emt 0:01:57]} 20. Qxc6 {[%emt 0:01:38]} Qxc6 {[%emt 0:07:46]} 21. Nxc6 {[%emt 0:00:05]} Bb7 {[%emt 0:00:06]} 22. Nb4 {[%emt 0:01:40]} Rfd8 {[%emt 0:01:33]} 23. Re7 {[%emt 0:01:22]} Rab8 {[%emt 0:02:08]} 24. Rae1 {[%emt 0:01:04]} g5 {[%emt 0:01:17]} 25. h3 {[%emt 0:06:51]} Rd2 {[%emt 0:07:02]} 26. R7e3 {[%emt 0:04:26]} Rxb2 {[%emt 0:01:41]} 27. Rb3 {[%emt 0:00:06]} Rxb3 {[%emt 0:01:57]} 28. axb3 {[%emt 0:00:01]} Bf3 {[%emt 0:00:40]} 29. Re3 {[%emt 0:00:08]} Bd1 {[%emt 0:00:52]} 30. Nc6 {[%emt 0:00:02]} Rxb3 {[%emt 0:00:52]} 31. Rxb3 {[%emt 0:00:07]} 1/2-1/2

[Event "World Senior chT-50 2019"]
[Site "Rhodes"]
[Date "2019.04.18"]
[Round "3.4"]
[White "Arnason, Jon L"]
[Black "Bellia, Fabrizio"]
[Result "1/2-1/2"]
[ECO "C91"]
[WhiteElo "2423"]
[BlackElo "2447"]
[Annotator "NA"]
[PlyCount "63"]
[EventDate "2019.04.16"]
[EventType "team-tourn"]
[EventCountry "GRE"]
[SourceTitle "playchess.com"]
[Source "ChessBase"]
[SourceQuality "1"]
[WhiteTeam "Iceland"]
[BlackTeam "Italy"]
[WhiteTeamCountry "ISL"]
[BlackTeamCountry "ITA"]
[TimeControl "40/5400+30:1800+30"]

1. e4 {[%emt 0:00:00]} e5 {[%emt 0:00:00]} 2. Nf3 {[%emt 0:00:00]} Nc6 {[%emt 0:00:00]} 3. Bb5 {[%emt 0:00:02]} a6 {[%emt 0:00:00]} 4. Ba4 {[%emt 0:00:04]} Nf6 {[%emt 0:00:00]} 5. O-O {[%emt 0:00:08]} Be7 {[%emt 0:00:02]} 6. Re1 {[%emt 0:00:06]} b5 {[%emt 0:00:06]} 7. Bb3 {[%emt 0:00:05]} d6 {[%emt 0:00:04]} 8. c3 {[%emt 0:00:04]} O-O {[%emt 0:00:08]} 9. d4 {[%emt 0:00:56]} Bg4 {[%emt 0:00:07]} 10. d5 {[%emt 0:00:41]} Na5 {[%emt 0:00:13]} 11. Bc2 {[%emt 0:00:06]} Qc8 {[%emt 0:00:06]} 12. Nbd2 {[%emt 0:06:05]} c6 {[%emt 0:00:28]} 13. b4 {[%emt 0:01:01]} Nb7 {[%emt 0:00:21]} 14. dxc6 {[%emt 0:00:38]} Qxc6 {[%emt 0:00:12]} 15. Bb2 {[%emt 0:00:13]} a5 {[%emt 0:01:39]} 16. a3 {[%emt 0:11:04]} Rfc8 {[%emt 0:00:52]} 17. Bd3 {[%emt 0:09:57]} Nd8 {[%emt 0:09:45]} 18. Qe2 {[%emt 0:15:29]} Rcb8 {[%emt 0:14:44]} 19. Nb3 {[%emt 0:04:30]} a4 {[%emt 0:09:14]} 20. Nbd2 {[%emt 0:03:07]} Ne6 {[%emt 0:03:38]} 21. g3 {[%emt 0:01:02]} Ng5 {[%emt 0:03:36]} 22. Kg2 {[%emt 0:10:03]} Qb7 {[%emt 0:14:07]} 23. Qe3 {[%emt 0:04:11]} Nxf3 {[%emt 0:08:26]} 24. Nxf3 {[%emt 0:00:05]} Rc8 {[%emt 0:00:31]} 25. Rac1 {[%emt 0:01:32]} Be6 {[%emt 0:03:04]} 26. Nd2 {[%emt 0:05:48]} Ng4 {[%emt 0:05:46]} 27. Qe2 {[%emt 0:07:13]} Bg5 {[%emt 0:00:21]} 28. Rcd1 {[%emt 0:01:36]} Bxd2 {[%emt 0:04:47]} 29. Rxd2 {[%emt 0:00:05]} Rab8 {[%emt 0:00:14]} 30. Kg1 {[%emt 0:02:43]} Nf6 {[%emt 0:02:43]} 31. Qd1 {[%emt 0:03:57]} Rc6 {[%emt 0:07:13]} 32. Bc2 {[%emt 0:00:29]} 1/2-1/2

[Event "World Senior chT-50 2019"]
[Site "Rhodes"]
[Date "2019.04.18"]
[Round "3.5"]
[White "Speelman, Jon S"]
[Black "Shabalov, Alexander"]
[Result "0-1"]
[ECO "E05"]
[WhiteElo "2509"]
[BlackElo "2510"]
[Annotator "ChessBase"]
[PlyCount "56"]
[EventDate "2019.04.16"]
[EventType "team-tourn"]
[EventCountry "GRE"]
[SourceTitle "playchess.com"]
[Source "ChessBase"]
[SourceQuality "1"]
[WhiteTeam "England"]
[BlackTeam "United States"]
[WhiteTeamCountry "ENG"]
[BlackTeamCountry "USA"]
[TimeControl "40/5400+30:1800+30"]

1. d4 {[%emt 0:00:00]} Nf6 {[%emt 0:01:22]} 2. Nf3 {[%emt 0:01:45]} e6 {[%emt 0:00:48]} 3. g3 {[%emt 0:00:24]} d5 {[%emt 0:00:32]} 4. Bg2 {[%emt 0:00:08]} Be7 {[%emt 0:00:10]} 5. O-O {[%emt 0:00:27]} O-O {[%emt 0:00:04]} 6. c4 {[%emt 0:00:06]} dxc4 {[%emt 0:00:15]} 7. Qc2 {[%emt 0:00:46]} b6 {[%emt 0:00:11]} 8. Ng5 {[%emt 0:16:19]} c6 {[%emt 0:01:19]} 9. Rd1 {[%emt 0:00:09]} Ba6 {[%emt 0:14:36]} 10. Nd2 {[%emt 0:07:24]} h6 {[%emt 0:08:59]} 11. Nge4 {[%emt 0:03:16]} Nxe4 {[%emt 0:07:54]} 12. Bxe4 {[%emt 0:02:53]} c3 {[%emt 0:05:09]} 13. Nf3 {[%emt 0:02:10]} cxb2 {[%emt 0:01:04]} 14. Bxb2 {[%emt 0:00:06]} Nd7 {[%emt 0:01:52]} 15. Bxc6 {[%emt 0:09:48]} Rc8 {[%emt 0:01:30]} 16. d5 {[%emt 0:00:03]} exd5 {[%emt 0:04:51]} 17. Rxd5 {[%emt 0:00:15]} Qc7 {[%emt 0:03:20]} 18. Rc1 {[%emt 0:14:36]} Nc5 {[%emt 0:05:19]} 19. Re5 {[%emt 0:05:27]} Bf6 {[%emt 0:06:54]} 20. Bd5 {[%emt 0:00:11]} Qd7 {[%emt 0:12:59]} 21. Qd2 {[%emt 0:06:44]} Nd3 {[%emt 0:03:40]} 22. Rxc8 {[%emt 0:04:09]} Rxc8 {[%emt 0:00:11]} 23. exd3 {[%emt 0:00:39]} Bxe5 {[%emt 0:00:14]} 24. Bc4 {[%emt 0:00:08]} Bxc4 {[%emt 0:05:02]} 25. Nxe5 {[%emt 0:00:05]} Qd6 {[%emt 0:00:43]} 26. Nxc4 {[%emt 0:02:10]} Rxc4 {[%emt 0:00:13]} 27. Qe2 {[%emt 0:00:04]} Rc7 {[%emt 0:01:24]} 28. Qe8+ {[%emt 0:01:59]} Kh7 {[%emt 0:00:42]} 0-1

[Event "World Senior chT-50 2019"]
[Site "Rhodes"]
[Date "2019.04.18"]
[Round "3.6"]
[White "Novikov, Igor"]
[Black "Arkell, Keith C"]
[Result "1/2-1/2"]
[ECO "E11"]
[WhiteElo "2563"]
[BlackElo "2467"]
[Annotator "ChessBase"]
[PlyCount "39"]
[EventDate "2019.04.16"]
[EventType "team-tourn"]
[EventCountry "GRE"]
[SourceTitle "playchess.com"]
[Source "ChessBase"]
[SourceQuality "1"]
[WhiteTeam "United States"]
[BlackTeam "England"]
[WhiteTeamCountry "USA"]
[BlackTeamCountry "ENG"]
[TimeControl "40/5400+30:1800+30"]

1. d4 {[%emt 0:00:00]} e6 {[%emt 0:00:00]} 2. c4 {[%emt 0:00:00]} Bb4+ {[%emt 0:00:00]} 3. Bd2 {[%emt 0:00:00]} Bxd2+ {[%emt 0:00:00]} 4. Qxd2 {[%emt 0:00:08]} Nf6 {[%emt 0:00:07]} 5. Nf3 {[%emt 0:00:39]} d5 {[%emt 0:00:12]} 6. g3 {[%emt 0:00:39]} Nbd7 {[%emt 0:00:10]} 7. Bg2 {[%emt 0:00:48]} O-O {[%emt 0:00:08]} 8. O-O {[%emt 0:00:37]} c6 {[%emt 0:00:19]} 9. Qc2 {[%emt 0:03:54]} b6 {[%emt 0:03:57]} 10. cxd5 {[%emt 0:17:30]} cxd5 {[%emt 0:00:07]} 11. Nc3 {[%emt 0:00:10]} Bb7 {[%emt 0:01:13]} 12. Rfc1 {[%emt 0:01:04]} Qe7 {[%emt 0:02:51]} 13. Qb3 {[%emt 0:02:47]} Rfc8 {[%emt 0:00:51]} 14. e3 {[%emt 0:04:28]} a6 {[%emt 0:03:03]} 15. a4 {[%emt 0:06:21]} Rc7 {[%emt 0:07:58]} 16. Rc2 {[%emt 0:05:15]} Rac8 {[%emt 0:00:37]} 17. Rac1 {[%emt 0:00:13]} g6 {[%emt 0:08:12]} 18. Nd2 {[%emt 0:06:58]} Qd8 {[%emt 0:04:05]} 19. Na2 {[%emt 0:04:11]} Ne8 {[%emt 0:02:09]} 20. Rxc7 {[%emt 0:07:26]} 1/2-1/2

[Event "World Senior chT-50 2019"]
[Site "Rhodes"]
[Date "2019.04.18"]
[Round "3.7"]
[White "Emms, John M"]
[Black "Ehlvest, Jaan"]
[Result "1-0"]
[ECO "C07"]
[WhiteElo "2474"]
[BlackElo "2521"]
[PlyCount "80"]
[EventDate "2019.04.16"]
[EventType "team-tourn"]
[EventCountry "GRE"]
[TimeControl "40/5400+30:1800+30"]

1. e4 {[%emt 0:00:00]} e6 {[%emt 0:00:00]} 2. d4 {[%emt 0:00:02]} d5 {[%emt 0:00:00]} 3. Nd2 {[%emt 0:00:15]} c5 {[%emt 0:00:00]} 4. Ngf3 {[%emt 0:02:05]} cxd4 {[%emt 0:00:00]} 5. exd5 {[%emt 0:00:24]} Qxd5 {[%emt 0:00:02]} 6. Bc4 {[%emt 0:00:24]} Qd7 {[%emt 0:00:18]} 7. O-O {[%emt 0:00:56]} Nc6 {[%emt 0:00:05]} 8. Nb3 {[%emt 0:01:15]} Nf6 {[%emt 0:00:08]} 9. Nbxd4 {[%emt 0:02:58]} Nxd4 {[%emt 0:00:20]} 10. Nxd4 {[%emt 0:00:09]} a6 {[%emt 0:00:04]} 11. Re1 {[%emt 0:11:33]} b5 {[%emt 0:02:00]} 12. Bb3 {[%emt 0:08:22]} Bb7 {[%emt 0:00:16]} 13. Bf4 {[%emt 0:17:30]} Be7 {[%emt 0:22:16]} 14. c3 {[%emt 0:07:11]} Rd8 {[%emt 0:06:17]} 15. Qe2 {[%emt 0:02:41]} Bd5 {[%emt 0:04:10]} 16. Bxd5 {[%emt 0:13:59]} Nxd5 {[%emt 0:00:53]} 17. Bg3 {[%emt 0:00:06]} O-O {[%emt 0:00:57]} 18. Rad1 {[%emt 0:02:58]} Qc8 {[%emt 0:10:12]} 19. h3 {[%emt 0:01:44]} Rfe8 {[%emt 0:00:50]} 20. Nc2 {[%emt 0:10:10]} Bc5 {[%emt 0:07:46]} 21. a3 {[%emt 0:01:47]} Nb6 {[%emt 0:01:47]} 22. Bf4 {[%emt 0:01:12]} Nc4 {[%emt 0:04:07]} 23. Bc1 {[%emt 0:00:13]} Qc6 {[%emt 0:02:24]} 24. Rxd8 {[%emt 0:04:10]} Rxd8 {[%emt 0:00:07]} 25. Rd1 {[%emt 0:00:05]} Rxd1+ {[%emt 0:05:01]} 26. Qxd1 {[%emt 0:00:01]} h6 {[%emt 0:00:08]} 27. Qd8+ {[%emt 0:02:54]} Kh7 {[%emt 0:00:10]} 28. Qd3+ {[%emt 0:00:22]} f5 {[%emt 0:00:20]} 29. Nb4 {[%emt 0:00:51]} Qc8 {[%emt 0:18:37]} 30. Qe2 {[%emt 0:03:28]} Bd6 {[%emt 0:00:36]} 31. Nd3 {[%emt 0:00:43]} a5 {[%emt 0:01:42]} 32. Bf4 {[%emt 0:01:55]} Bxf4 {[%emt 0:06:43]} 33. Nxf4 {[%emt 0:00:01]} e5 {[%emt 0:00:06]} 34. Nd5 {[%emt 0:01:23]} Qc5 {[%emt 0:02:56]} 35. Qf3 {[%emt 0:01:46]} Nd6 {[%emt 0:04:15]} 36. Ne7 {[%emt 0:01:09]} e4 {[%emt 0:01:08]} 37. Qf4 {[%emt 0:00:59]} g5 {[%emt 0:01:05]} 38. b4 {[%emt 0:00:28]} axb4 {[%emt 0:00:31]} 39. axb4 {[%emt 0:00:01]} gxf4 {[%emt 0:00:39]} 40. bxc5 {[%emt 0:00:00]} Ne8 {[%emt 0:00:00]} 1-0

[Event "World Senior chT-50 2019"]
[Site "Rhodes"]
[Date "2019.04.18"]
[Round "3.8"]
[White "Yermolinsky, Alex"]
[Black "Plaskett, H James"]
[Result "1-0"]
[ECO "A59"]
[WhiteElo "2508"]
[BlackElo "2437"]
[PlyCount "75"]
[EventDate "2019.04.16"]
[EventType "team-tourn"]
[EventCountry "GRE"]
[TimeControl "40/5400+30:1800+30"]

1. d4 {[%emt 0:00:00]} Nf6 {[%emt 0:01:15]} 2. c4 {[%emt 0:00:00]} c5 {[%emt 0:00:31]} 3. d5 {[%emt 0:00:04]} b5 {[%emt 0:00:05]} 4. cxb5 {[%emt 0:00:57]} a6 {[%emt 0:00:04]} 5. bxa6 {[%emt 0:00:43]} Bxa6 {[%emt 0:00:06]} 6. Nc3 {[%emt 0:07:42]} d6 {[%emt 0:00:21]} 7. e4 {[%emt 0:01:42]} Bxf1 {[%emt 0:01:44]} 8. Kxf1 {[%emt 0:00:05]} g6 {[%emt 0:00:07]} 9. Nf3 {[%emt 0:00:16]} Bg7 {[%emt 0:00:15]} 10. g3 {[%emt 0:00:05]} O-O {[%emt 0:00:06]} 11. Kg2 {[%emt 0:00:02]} Qb6 {[%emt 0:00:19]} 12. Re1 {[%emt 0:06:10]} Nbd7 {[%emt 0:01:22]} 13. h3 {[%emt 0:00:40]} Rfb8 {[%emt 0:04:00]} 14. Re2 {[%emt 0:01:51]} Qa6 {[%emt 0:03:18]} 15. Bg5 {[%emt 0:19:34]} Rb4 {[%emt 0:16:16]} 16. a3 {[%emt 0:02:30]} Rb7 {[%emt 0:05:40]} 17. Rc1 {[%emt 0:00:48]} Nb6 {[%emt 0:10:05]} 18. Rcc2 {[%emt 0:09:05]} Nc4 {[%emt 0:07:44]} 19. e5 {[%emt 0:15:59]} Nd7 {[%emt 0:04:55]} 20. exd6 {[%emt 0:05:30]} exd6 {[%emt 0:00:11]} 21. Bc1 {[%emt 0:03:35]} Nde5 {[%emt 0:08:55]} 22. Nxe5 {[%emt 0:00:30]} Nxe5 {[%emt 0:00:24]} 23. Bf4 {[%emt 0:05:45]} h6 {[%emt 0:17:52]} 24. Ne4 {[%emt 0:02:34]} Nd3 {[%emt 0:03:28]} 25. Bxd6 {[%emt 0:02:07]} Nxb2 {[%emt 0:00:15]} 26. Qh1 {[%emt 0:03:16]} c4 {[%emt 0:04:48]} 27. Kh2 {[%emt 0:00:51]} Nd3 {[%emt 0:01:37]} 28. Nc5 {[%emt 0:00:41]} Nxc5 {[%emt 0:01:29]} 29. Bxc5 {[%emt 0:00:04]} Rc8 {[%emt 0:01:14]} 30. Bb4 {[%emt 0:01:26]} c3 {[%emt 0:01:32]} 31. Qe4 {[%emt 0:02:42]} Kh7 {[%emt 0:01:53]} 32. d6 {[%emt 0:00:44]} Rd7 {[%emt 0:01:13]} 33. Qd5 {[%emt 0:00:55]} Bf6 {[%emt 0:00:27]} 34. Re7 {[%emt 0:01:07]} Rxe7 {[%emt 0:02:11]} 35. dxe7 {[%emt 0:00:06]} Kg7 {[%emt 0:00:12]} 36. Rxc3 {[%emt 0:03:42]} Re8 {[%emt 0:01:34]} 37. Rf3 {[%emt 0:01:52]} Qe2 {[%emt 0:00:29]} 38. Bc3 {[%emt 0:01:53]} 1-0

[Event "World Senior chT-50 2019"]
[Site "Rhodes"]
[Date "2019.04.18"]
[Round "3.9"]
[White "Vaganian, Rafael A"]
[Black "Soffer, Ram"]
[Result "1/2-1/2"]
[ECO "E05"]
[WhiteElo "2535"]
[BlackElo "2486"]
[Annotator "ChessBase"]
[PlyCount "49"]
[EventDate "2019.04.16"]
[EventType "team-tourn"]
[EventCountry "GRE"]
[SourceTitle "playchess.com"]
[Source "ChessBase"]
[SourceQuality "1"]
[WhiteTeam "Armenia"]
[BlackTeam "Israel"]
[WhiteTeamCountry "ARM"]
[BlackTeamCountry "ISR"]
[TimeControl "40/5400+30:1800+30"]

1. Nf3 {[%emt 0:00:00]} d5 {[%emt 0:00:19]} 2. g3 {[%emt 0:00:09]} Nf6 {[%emt 0:00:20]} 3. Bg2 {[%emt 0:00:04]} e6 {[%emt 0:00:10]} 4. O-O {[%emt 0:00:41]} Be7 {[%emt 0:04:21]} 5. c4 {[%emt 0:02:31]} O-O {[%emt 0:00:13]} 6. d4 {[%emt 0:00:21]} dxc4 {[%emt 0:00:38]} 7. Qc2 {[%emt 0:00:20]} a6 {[%emt 0:00:20]} 8. a4 {[%emt 0:10:20]} Bd7 {[%emt 0:00:18]} 9. Qxc4 {[%emt 0:00:49]} Bc6 {[%emt 0:00:26]} 10. Bg5 {[%emt 0:01:07]} a5 {[%emt 0:03:58]} 11. Nc3 {[%emt 0:02:41]} Nbd7 {[%emt 0:09:38]} 12. Rfe1 {[%emt 0:05:08]} Nb6 {[%emt 0:12:34]} 13. Qb3 {[%emt 0:02:38]} Bxf3 {[%emt 0:06:03]} 14. Bxf3 {[%emt 0:00:43]} Qxd4 {[%emt 0:01:51]} 15. Bxb7 {[%emt 0:01:24]} Rab8 {[%emt 0:00:07]} 16. Bg2 {[%emt 0:01:07]} Nbd5 {[%emt 0:01:13]} 17. Qc2 {[%emt 0:11:43]} Qc5 {[%emt 0:07:06]} 18. Qc1 {[%emt 0:02:32]} Nxc3 {[%emt 0:07:28]} 19. bxc3 {[%emt 0:00:16]} Rb3 {[%emt 0:02:26]} 20. Qe3 {[%emt 0:17:02]} Qf5 {[%emt 0:13:10]} 21. Qf4 {[%emt 0:00:54]} Qc5 {[%emt 0:02:34]} 22. Qe3 {[%emt 0:00:59]} Qf5 {[%emt 0:02:20]} 23. Qf4 {[%emt 0:00:19]} Qc5 {[%emt 0:01:09]} 24. Qc1 {[%emt 0:00:09]} Qc4 {[%emt 0:00:02]} 25. Be3 {[%emt 0:02:08]} 1/2-1/2

[Event "World Senior chT-50 2019"]
[Site "Rhodes"]
[Date "2019.04.18"]
[Round "3.10"]
[White "Manor, Ilan"]
[Black "Minasian, Artashes"]
[Result "0-1"]
[ECO "A40"]
[WhiteElo "2461"]
[BlackElo "2472"]
[PlyCount "98"]
[EventDate "2019.04.16"]
[EventType "team-tourn"]
[EventCountry "GRE"]
[TimeControl "40/5400+30:1800+30"]

1. Nf3 {[%emt 0:00:00]} g6 {[%emt 0:00:00]} 2. c4 {[%emt 0:00:01]} Bg7 {[%emt 0:00:00]} 3. d4 {[%emt 0:00:30]} c5 {[%emt 0:00:00]} 4. e4 {[%emt 0:00:23]} d6 {[%emt 0:00:00]} 5. Be2 {[%emt 0:00:14]} Nc6 {[%emt 0:01:00]} 6. d5 {[%emt 0:01:00]} Nd4 {[%emt 0:00:16]} 7. Nxd4 {[%emt 0:02:56]} cxd4 {[%emt 0:00:25]} 8. Na3 {[%emt 0:13:06]} e5 {[%emt 0:09:21]} 9. dxe6 {[%emt 0:15:54]} fxe6 {[%emt 0:00:21]} 10. Nb5 {[%emt 0:06:34]} Qb6 {[%emt 0:05:18]} 11. b4 {[%emt 0:00:07]} d3 {[%emt 0:13:24]} 12. Bxd3 {[%emt 0:06:58]} Bxa1 {[%emt 0:00:09]} 13. Be3 {[%emt 0:00:29]} Bc3+ {[%emt 0:00:09]} 14. Nxc3 {[%emt 0:03:36]} Qxb4 {[%emt 0:00:09]} 15. Bd2 {[%emt 0:00:23]} Qb6 {[%emt 0:05:20]} 16. e5 {[%emt 0:02:42]} Qd4 {[%emt 0:07:10]} 17. Qf3 {[%emt 0:26:55]} Qxe5+ {[%emt 0:04:44]} 18. Ne4 {[%emt 0:00:13]} d5 {[%emt 0:04:29]} 19. Bc3 {[%emt 0:04:16]} dxe4 {[%emt 0:06:18]} 20. Bxe4 {[%emt 0:00:13]} Qc7 {[%emt 0:01:52]} 21. Bxh8 {[%emt 0:00:55]} Qxc4 {[%emt 0:01:26]} 22. Bd3 {[%emt 0:03:29]} Qd5 {[%emt 0:08:35]} 23. Qg3 {[%emt 0:01:19]} Qa5+ {[%emt 0:02:00]} 24. Kf1 {[%emt 0:06:52]} Bd7 {[%emt 0:05:08]} 25. h3 {[%emt 0:01:22]} Bb5 {[%emt 0:06:44]} 26. Bxb5+ {[%emt 0:00:43]} Qxb5+ {[%emt 0:00:05]} 27. Kg1 {[%emt 0:00:01]} Ne7 {[%emt 0:04:31]} 28. Kh2 {[%emt 0:00:07]} Nf5 {[%emt 0:03:19]} 29. Qf4 {[%emt 0:00:38]} Kf7 {[%emt 0:04:34]} 30. Ba1 {[%emt 0:00:03]} Qd5 {[%emt 0:02:21]} 31. Rc1 {[%emt 0:00:30]} Kg8 {[%emt 0:01:23]} 32. Rc7 {[%emt 0:00:25]} Re8 {[%emt 0:01:21]} 33. Be5 {[%emt 0:02:14]} Rf8 {[%emt 0:00:45]} 34. g4 {[%emt 0:00:23]} Ne7 {[%emt 0:00:22]} 35. Qe3 {[%emt 0:00:42]} Rf3 {[%emt 0:00:41]} 36. Qe2 {[%emt 0:00:20]} Nc6 {[%emt 0:01:07]} 37. Rc8+ {[%emt 0:00:59]} Rf8 {[%emt 0:00:59]} 38. Rxf8+ {[%emt 0:00:40]} Kxf8 {[%emt 0:00:04]} 39. f4 {[%emt 0:00:28]} Nxe5 {[%emt 0:01:37]} 40. fxe5 {[%emt 0:00:00]} Ke7 {[%emt 0:00:00]} 41. Qe3 {[%emt 0:02:44]} Qxa2+ {[%emt 0:02:46]} 42. Kg3 {[%emt 0:00:04]} Qa5 {[%emt 0:00:39]} 43. Kh4 {[%emt 0:00:47]} Qb6 {[%emt 0:09:40]} 44. Qf3 {[%emt 0:05:26]} Ke8 {[%emt 0:02:26]} 45. Kg5 {[%emt 0:01:12]} Qc5 {[%emt 0:03:30]} 46. Qf6 {[%emt 0:07:41]} Qe7 {[%emt 0:03:12]} 47. Kh6 {[%emt 0:00:14]} b5 {[%emt 0:01:02]} 48. h4 {[%emt 0:09:32]} b4 {[%emt 0:00:06]} 49. h5 {[%emt 0:00:09]} g5 {[%emt 0:03:41]} 0-1